fUST/lending_fUST_20250512
["ID","MTS","AMOUNT","RATE_DAILY","PERIOD"]
[360787798,1747025448329,-764.50168974,0.000189,2]
[360787799,1747025448338,-151.0,0.000189,2]
[360787800,1747025448348,-151.0,0.000189,2]
[360787801,1747025448357,-151.0,0.000189,2]
[360787802,1747025448366,-151.0,0.000189,2]
[360787803,1747025448376,-151.0,0.000189,2]
[360787804,1747025448386,-190.844157,0.000189,2]
[360787805,1747025448395,-151.0,0.000189,2]
[360787806,1747025448404,-151.0,0.000189,2]
[360787807,1747025448414,-151.0,0.000189,2]
[360787808,1747025448424,-151.0,0.000189,2]
[360787809,1747025448434,-1914.50946071,0.000189,2]
[360787810,1747025448443,-636.0,0.000189,2]
[360787812,1747025448453,-413.520359,0.000189,2]
[360787814,1747025448463,-413.520359,0.000189,2]
[360787816,1747025448473,-413.520359,0.000189,2]
[360787818,1747025448482,-413.520359,0.000189,2]
[360787820,1747025448492,-8507.96890965,0.000189,2]
[360787822,1747025448502,-2545.6504143,0.00018905,2]
[360787824,1747025448512,-437.761469,0.00018905,2]
[360787826,1747025448522,-437.761469,0.00018905,2]
[360787828,1747025448532,-151.0,0.00018942,2]
[360787830,1747025448541,-151.0,0.00018942,2]
[360787832,1747025448551,-232.848012,0.00018942,2]
[360787834,1747025448561,-232.848012,0.00018942,2]
[360787836,1747025448573,-151.0,0.00018942,2]
[360787838,1747025448583,-163.547502,0.00018942,2]
[360787840,1747025448592,-413.520359,0.00018942,2]
[360787842,1747025448602,-413.520359,0.00018942,2]
[360787844,1747025448612,-156.46752,0.00018943,2]
[360787845,1747025448621,-151.553521,0.00018943,2]
[360787846,1747025448631,-151.0,0.00018943,2]
[360787847,1747025448640,-151.0,0.00018943,2]
[360787848,1747025448650,-151.0,0.00018943,2]
[360787849,1747025448659,-164.539928,0.00018943,2]
[360787851,1747025448668,-151.0,0.00018943,2]
[360787852,1747025448678,-189.976546,0.00018943,2]
[360787855,1747025448688,-189.976546,0.00018943,2]
[360787856,1747025448698,-151.0,0.00018943,2]
[360787858,1747025448709,-151.0,0.00018943,2]
[360787860,1747025448718,-151.0,0.00018968,2]
[360787862,1747025448728,-151.0,0.00018971,2]
[360787864,1747025448738,-358.53877274,0.00018973,2]
[360787866,1747025448748,-500.0,0.00018973,2]
[360787868,1747025448757,-500.0,0.00018973,2]
[360787870,1747025448766,-501.56055881,0.00018973,2]
[360787872,1747025448775,-555.45413413,0.00018973,2]
[360787874,1747025448785,-502.2477397,0.00018973,2]
[360787876,1747025448794,-408.36227071,0.00018973,2]
[360787878,1747025448804,-500.0,0.00018973,2]
[360787880,1747025448814,-500.0,0.00018973,2]
[360787882,1747025448824,-500.0,0.00018973,2]
[360787884,1747025448838,-500.0,0.00018973,2]
[360787886,1747025448849,-500.0,0.00018973,2]
[360787888,1747025448859,-500.0,0.00018973,2]
[360787890,1747025448868,-511.63492986,0.00018973,2]
[360787892,1747025448878,-500.0,0.00018973,2]
[360787894,1747025448887,-500.0,0.00018973,2]
[360787896,1747025448897,-502.39322553,0.00018973,2]
[360787898,1747025448907,-187.150425,0.00018973,2]
[360787900,1747025448918,-151.0,0.00018973,2]
[360787902,1747025448928,-265.626934,0.00018973,2]
[360787904,1747025448937,-151.0,0.00018973,2]
[360787906,1747025448947,-154.640279,0.00018973,2]
[360787908,1747025448956,-151.0,0.00018973,2]
[360787910,1747025448966,-264.116646,0.00018973,2]
[360787912,1747025448975,-151.0,0.00018973,2]
[360787914,1747025448985,-152.92052,0.00018973,2]
[360787916,1747025448994,-151.0,0.00018973,2]
[360787918,1747025449004,-151.0,0.00018973,2]
[360787919,1747025449013,-151.0,0.00018973,2]
[360787920,1747025449023,-437.128412,0.00018973,2]
[360787921,1747025449038,-437.128412,0.00018973,2]
[360787922,1747025449057,-437.128412,0.00018973,2]
[360787923,1747025449077,-437.128412,0.00018973,2]
[360787924,1747025449096,-151.0,0.00018973,2]
[360787925,1747025449118,-151.0,0.00018973,2]
[360787926,1747025449127,-151.0,0.00018973,2]
[360787927,1747025449138,-151.0,0.00018973,2]
[360787928,1747025449147,-151.0,0.00018973,2]
[360787930,1747025449157,-280.165532,0.00018973,2]
[360787932,1747025449166,-151.0,0.00018973,2]
[360787934,1747025449175,-151.0,0.00018973,2]
[360787936,1747025449184,-246.919092,0.00018973,2]
[360787938,1747025449193,-246.919092,0.00018973,2]
[360787940,1747025449202,-246.919092,0.00018973,2]
[360787942,1747025449211,-246.919092,0.00018973,2]
[360787943,1747025449221,-437.761469,0.00018973,2]
[360787945,1747025449230,-437.761473,0.00018973,2]
[360787948,1747025449239,-189.976546,0.00018973,2]
[360787950,1747025449248,-189.976546,0.00018973,2]
[360787951,1747025449258,-189.976546,0.00018973,2]
[360787954,1747025449267,-189.976538,0.00018973,2]
[360787955,1747025449276,-151.0,0.00018973,2]
[360787957,1747025449285,-151.0,0.00018973,2]
[360787959,1747025449295,-260.043266,0.00018973,2]
[360787961,1747025449304,-232.848012,0.00018973,2]
[360787963,1747025449313,-232.848012,0.00018973,2]
[360787965,1747025449323,-232.848012,0.00018973,2]
[360787967,1747025449332,-232.848012,0.00018973,2]
[360787969,1747025449341,-232.848012,0.00018973,2]
[360787971,1747025449351,-232.848011,0.00018973,2]
[360787973,1747025449360,-151.0,0.00018973,2]
[360787975,1747025449370,-151.0,0.00018973,2]
[360787977,1747025449379,-154.226872,0.00018973,2]
[360787979,1747025449388,-151.0,0.00018973,2]
[360787981,1747025449398,-151.0,0.00018973,2]
[360787983,1747025449408,-413.520359,0.00018973,2]
[360787985,1747025449417,-413.520359,0.00018973,2]
[360787987,1747025449426,-413.520359,0.00018973,2]
[360787989,1747025449436,-413.520359,0.00018973,2]
[360787991,1747025449446,-413.520359,0.00018973,2]
[360787993,1747025449455,-413.520353,0.00018973,2]
[360787995,1747025449466,-151.0,0.00018979,2]
[360787997,1747025449476,-151.0,0.00018979,2]
[360787999,1747025449486,-151.0,0.00018979,2]
[360788001,1747025449496,-246.919092,0.00018979,2]
[360788003,1747025449506,-246.919092,0.00018979,2]
[360788005,1747025449515,-151.0,0.00018981,2]
[360788007,1747025449525,-151.0,0.00018981,2]
[360788009,1747025449535,-151.0,0.00018981,2]
[360788011,1747025449545,-151.0,0.00018981,2]
[360788013,1747025449554,-13545.95750165,0.00018981,2]
[360788015,1747025449564,-153.546347,0.00018981,2]
[360788017,1747025449575,-437.128412,0.00018981,2]
[360788019,1747025449584,-437.128412,0.00018981,2]
[360788021,1747025449594,-151.0,0.00018981,2]
[360788023,1747025449603,-151.0,0.00018981,2]
[360788025,1747025449613,-151.0,0.00018981,2]
[360788027,1747025449622,-151.0,0.00018981,2]
[360788029,1747025449631,-293.727547,0.00018981,2]
[360788031,1747025449640,-246.919092,0.00018981,2]
[360788033,1747025449650,-246.919092,0.00018981,2]
[360788035,1747025449660,-1998.00004287,0.00018999,2]
[360788037,1747025449669,-151.0,0.00018999,2]
[360788039,1747025449678,-151.0,0.00018999,2]
[360788041,1747025449688,-437.128412,0.00018999,2]
[360788043,1747025449697,-437.128412,0.00018999,2]
[360788045,1747025449706,-19585.15765393,0.00019,2]
[360788046,1747025449715,-33303.32608615,0.00019,2]
[360788075,1747025450260,-84540.98707513,0.00019,2]
[360788081,1747025533467,653.48559454,0.00017035,2]
[360788093,1747026367412,-2620.0,0.00016138,2]
[360788101,1747026430087,-69.8094813,0.00016138,2]
[360788102,1747026430109,-159.117843,0.00016928,2]
[360788103,1747026430132,-72.10570888,0.00016935,2]
[360788118,1747026553255,-445.860614,0.00013699,2]
[360788119,1747026553279,-300.0,0.00016826,2]
[360788120,1747026553301,-500.0,0.00016827,2]
[360788121,1747026553322,-500.0,0.00016827,2]
[360788122,1747026553345,-500.0,0.00016827,2]
[360788123,1747026553366,-500.0,0.00016827,2]
[360788124,1747026553387,-500.0,0.00016827,2]
[360788125,1747026553407,-528.58237655,0.00016827,2]
[360788126,1747026553429,-500.0,0.00016827,2]
[360788127,1747026553450,-500.0,0.00016827,2]
[360788128,1747026553471,-500.0,0.00016827,2]
[360788129,1747026553492,-500.0,0.00016827,2]
[360788130,1747026553514,-500.0,0.00016827,2]
[360788131,1747026553536,-500.0,0.00016827,2]
[360788132,1747026553557,-500.0,0.00016827,2]
[360788133,1747026553578,-221.59356382,0.00016827,2]
[360788134,1747026553600,-500.0,0.00016827,2]
[360788135,1747026553621,-500.0,0.00016827,2]
[360788136,1747026553644,-500.0,0.00016827,2]
[360788137,1747026553667,-500.0,0.00016827,2]
[360788138,1747026553688,-500.0,0.00016827,2]
[360788139,1747026553709,-511.80476693,0.00016827,2]
[360788140,1747026553734,-500.0,0.00016827,2]
[360788141,1747026553754,-500.0,0.00016827,2]
[360788142,1747026553774,-500.0,0.00016827,2]
[360788143,1747026553795,-369.06612783,0.00016827,2]
[360788144,1747026554161,-130.93387217,0.00016827,2]
[360788145,1747026554185,-160.21860061,0.00016827,2]
[360788146,1747026554211,-161.55236116,0.00016827,2]
[360788147,1747026554233,-500.0,0.00016827,2]
[360788148,1747026554258,-230.47416105,0.00016827,2]
[360788149,1747026554279,-261.48509278,0.00016827,2]
[360788150,1747026554300,-500.0,0.00016827,2]
[360788151,1747026554322,-300.0,0.00016827,2]
[360788152,1747026554341,-500.0,0.00016827,2]
[360788153,1747026554362,-500.0,0.00016827,2]
[360788154,1747026554382,-44387.01367274,0.00016828,2]
[360788155,1747026556080,-25933.51040035,0.00016828,2]
[360788156,1747026556100,-1644.25641871,0.00016935,2]
[360788157,1747026556120,-500.0,0.00017,2]
[360788158,1747026556139,-5228.39172038,0.00017035,2]
[360788159,1747026556160,-751.05853262,0.00017136,2]
[360788180,1747026632413,-300.0,0.00016999,2]
[360788182,1747026632423,-500.0,0.00017,2]
[360788184,1747026632432,-500.0,0.00017,2]
[360788186,1747026632442,-450.23670689,0.00017,2]
[360788188,1747026632451,-500.0,0.00017,2]
[360788190,1747026632460,-500.0,0.00017,2]
[360788211,1747026632469,-500.0,0.00017,2]
[360788213,1747026632652,-500.0,0.00017,2]
[360788215,1747026632662,-1200.0,0.00017135,2]
[360788217,1747026632671,-300.0,0.00017139,2]
[360788219,1747026632680,-300.0,0.00017139,2]
[360788221,1747026632690,-2736.20809095,0.0001714,2]
[360789285,1747026675958,3265.66726644,0.00022,120]
[360789333,1747027144126,-24888.0,0.00016155,2]
[360789335,1747027344545,-1500.0,0.00015459,2]
[360789356,1747027607731,-500.0,0.00013699,2]
[360789358,1747027619114,-9.962066,0.00013699,2]
[360789359,1747027619137,-65.689049,0.00015459,2]
[360789360,1747027619158,-163.59994443,0.00016051,2]
[360789361,1747027619180,-105.30444379,0.00016151,2]
[360789363,1747027634087,-300.0,0.0001615,2]
[360789364,1747027634111,-86.97046299,0.00016151,2]
[360789365,1747027634133,-36.18245663,0.00016151,2]
[360789366,1747027638135,-463.81754337,0.00016151,2]
[360789367,1747027638159,-458.37073366,0.00016151,2]
[360789373,1747027671456,-3000.0,0.00022,30]
[360789374,1747027671479,-486.44167875,0.00022,30]
[360789375,1747027671507,-467.90978875,0.00022,30]
[360789376,1747027671531,-465.19909342,0.00022,30]
[360789377,1747027671554,-229.73,0.00022,90]
[360789378,1747027671579,-164.0,0.00022055,120]
[360789379,1747027671656,-2000.0,0.00024932,120]
[360789380,1747027671691,-154.55,0.00025,30]
[360789381,1747027671723,-1100.0,0.00025,30]
[360789382,1747027671754,-500.0,0.00025,30]
[360789383,1747027671786,-1100.0,0.00025,30]
[360789384,1747027671820,-500.0,0.00025,30]
[360789385,1747027671849,-1100.0,0.00025,30]
[360789386,1747027671879,-500.0,0.00025,30]
[360789387,1747027671912,-1100.0,0.00025,30]
[360789388,1747027671947,-500.0,0.00025,30]
[360789389,1747027671977,-1100.0,0.00025,30]
[360789390,1747027672006,-500.0,0.00025,30]
[360789391,1747027672039,-1100.0,0.00025,30]
[360789392,1747027672068,-500.0,0.00025,30]
[360789393,1747027672098,-1100.0,0.00025,30]
[360789394,1747027672133,-500.0,0.00025,30]
[360789395,1747027672168,-1100.0,0.00025,30]
[360789396,1747027672204,-608.16227806,0.00025,30]
[360789397,1747027672238,-1100.0,0.00025,30]
[360789398,1747027672269,-1100.0,0.00025,30]
[360789399,1747027672300,-1100.0,0.00025,30]
[360789400,1747027672330,-1100.0,0.00025,30]
[360789401,1747027672362,-1100.0,0.00025,30]
[360789402,1747027672392,-500.0,0.00025,30]
[360789403,1747027672423,-1527.71202906,0.00025,30]
[360789404,1747027672454,-755.51357116,0.00025,30]
[360789405,1747027672483,-500.21135828,0.00025,30]
[360789406,1747027672515,-500.68655866,0.00025,30]
[360789407,1747027672547,-600.0,0.00025,30]
[360789408,1747027672576,-600.0,0.00025,30]
[360789409,1747027672606,-600.0,0.00025,30]
[360789410,1747027672636,-600.0,0.00025,30]
[360789411,1747027672665,-600.0,0.00025,30]
[360789412,1747027672694,-600.0,0.00025,30]
[360789413,1747027672724,-600.0,0.00025,30]
[360789414,1747027672753,-600.0,0.00025,30]
[360789415,1747027672782,-600.0,0.00025,30]
[360789416,1747027672811,-600.0,0.00025,30]
[360789417,1747027672840,-600.0,0.00025,30]
[360789418,1747027672870,-600.0,0.00025,30]
[360789419,1747027672898,-1105.82667086,0.00025,30]
[360789420,1747027672922,-988.61,0.00025,60]
[360789421,1747027672946,-1218.40314284,0.00025,120]
[360789422,1747027673197,-4280.59123017,0.00025,120]
[360789423,1747027673227,-184.50785321,0.00025,120]
[360789424,1747027673251,-1151.49445403,0.00025,120]
[360789425,1747027673275,-3000.0,0.00025,30]
[360789426,1747027673300,-997.78101552,0.00025,30]
[360789427,1747027673325,-212.17074216,0.00025,30]
[360789428,1747027673349,-12623.54026388,0.00025,30]
[360789429,1747027673374,-160.0,0.00025,30]
[360789430,1747027673398,-422.20096692,0.00025,30]
[360789431,1747027673422,-314.24507772,0.00025,30]
[360789432,1747027673448,-2000.0,0.00025205,120]
[360789433,1747027673475,-2000.0,0.00025479,120]
[360789434,1747027673506,-2000.0,0.00025753,120]
[360789435,1747027673531,-1860.0,0.00026,120]
[360789436,1747027673556,-212.17074216,0.00026,120]
[360789437,1747027673584,-2000.0,0.00026027,120]
[360789438,1747027673609,-1100.0,0.00026301,120]
[360789439,1747027673635,-2000.0,0.00026301,120]
[360789440,1747027673660,-1100.0,0.00026575,120]
[360789441,1747027673686,-2000.0,0.00026575,120]
[360789442,1747027673712,-1100.0,0.00026849,120]
[360789443,1747027673737,-2000.0,0.00026849,120]
[360789444,1747027673762,-2502.0,0.00026849,60]
[360789445,1747027673789,-1100.0,0.00027123,120]
[360789446,1747027673813,-2000.0,0.00027123,120]
[360789447,1747027673837,-1100.0,0.00027397,120]
[360789448,1747027673862,-2000.0,0.00027397,120]
[360789449,1747027673888,-400.0,0.00027397,60]
[360789450,1747027673912,-279.0,0.00027397,30]
[360789451,1747027673935,-300.0,0.00027397,30]
[360789452,1747027673959,-250.0,0.00027397,30]
[360789453,1747027673982,-250.0,0.00027397,30]
[360789454,1747027674006,-250.0,0.00027397,30]
[360789455,1747027674030,-250.0,0.00027397,30]
[360789456,1747027674053,-200.0,0.00027397,90]
[360789457,1747027674078,-1525.547833,0.00027397,120]
[360789458,1747027674102,-1526.34,0.00027498,30]
[360789459,1747027674126,-821.84108302,0.000275,30]
[360789460,1747027674152,-1000.0,0.00027671,120]
[360789461,1747027674176,-153.0,0.00027776,30]
[360789462,1747027674200,-153.0,0.00027776,30]
[360789463,1747027674224,-153.0,0.00027776,30]
[360789464,1747027674249,-153.8873726,0.00027776,30]
[360789465,1747027674274,-153.0,0.00027776,30]
[360789466,1747027674298,-238.7553925,0.00027794,30]
[360789467,1747027674322,-1083.91876135,0.000278,120]
[360789468,1747027674347,-2000.0,0.00027945,120]
[360789469,1747027674373,-1000.0,0.00027945,120]
[360789470,1747027674397,-50000.0288758,0.00028,120]
[360789471,1747027674420,-212.17074216,0.00028,120]
[360789472,1747027674446,-200.019335,0.00028028,60]
[360789473,1747027674472,-1000.0,0.00028219,120]
[360789474,1747027674500,-200.019335,0.00028371,60]
[360789475,1747027674526,-2000.0,0.00028493,120]
[360789476,1747027674550,-1000.0,0.00028493,120]
[360789477,1747027674575,-153.0,0.00028572,30]
[360789478,1747027674601,-153.0,0.00028572,30]
[360789479,1747027674625,-153.0,0.00028572,30]
[360789480,1747027674648,-153.0,0.00028572,30]
[360789481,1747027674671,-153.0,0.00028572,30]
[360789482,1747027674696,-153.0,0.00028572,30]
[360789483,1747027674719,-153.0,0.00028572,30]
[360789484,1747027674742,-220.3015512,0.00028572,30]
[360789485,1747027674768,-153.0,0.00028572,30]
[360789486,1747027674791,-153.0,0.00028572,30]
[360789487,1747027674815,-153.0,0.00028572,30]
[360789488,1747027674841,-153.0,0.00028572,30]
[360789489,1747027674864,-153.0,0.00028572,30]
[360789490,1747027674888,-153.0,0.00028572,30]
[360789491,1747027674913,-153.0,0.00028572,30]
[360789492,1747027674938,-165.388426,0.00028597,30]
[360789493,1747027674962,-153.0,0.00028597,30]
[360789494,1747027674986,-153.0,0.00028597,30]
[360789495,1747027675012,-200.019335,0.00028714,60]
[360789496,1747027675036,-1000.0,0.00028767,120]
[360789497,1747027675170,-156.060929,0.000288,60]
[360789498,1747027675195,-160.0,0.00029,30]
[360789499,1747027675221,-160.0,0.00029,30]
[360789500,1747027675246,-160.0,0.00029,30]
[360789501,1747027675271,-160.0,0.00029,30]
[360789502,1747027675294,-160.0,0.00029,30]
[360789503,1747027675322,-160.0,0.00029,30]
[360789504,1747027675350,-2000.0,0.00029041,120]
[360789505,1747027675375,-1000.0,0.00029041,120]
[360789506,1747027675399,-1333.0,0.00029041,120]
[360789507,1747027675424,-200.019335,0.00029057,60]
[360789508,1747027675447,-1000.0,0.00029315,120]
[360789509,1747027675471,-153.0,0.00029394,30]
[360789510,1747027675497,-153.0,0.00029394,30]
[360789511,1747027675520,-153.0,0.00029394,30]
[360789512,1747027675544,-153.0,0.00029394,30]
[360789513,1747027675567,-153.0,0.00029394,30]
[360789514,1747027675592,-153.0,0.00029394,30]
[360789515,1747027675616,-153.0,0.00029394,30]
[360789516,1747027675640,-200.019335,0.000294,60]
[360789517,1747027675663,-1526.34,0.00029498,30]
[360789518,1747027675687,-2000.0,0.00029589,120]
[360789519,1747027675710,-1000.0,0.00029589,120]
[360789520,1747027675734,-200.0,0.000297,120]
[360789521,1747027675757,-389.11834,0.000297,120]
[360789522,1747027675780,-238.65,0.000298,30]
[360789523,1747027675804,-1000.0,0.00029863,120]
[360789524,1747027675828,-2000.0,0.000299,30]
[360789525,1747027675853,-186.0,0.0003,30]
[360789526,1747027675877,-570.77534996,0.0003,60]
[360789527,1747027675902,-165.89585996,0.0003,120]
[360789528,1747027675926,-11054.93873253,0.0003,30]
[360789529,1747027675951,-315.71432442,0.0003,120]
[360789530,1747027675975,-1564.59612279,0.0003,60]
[360789531,1747027676000,-3052.31803083,0.0003,120]
[360789532,1747027676025,-2000.0,0.0003,30]
[360789533,1747027676049,-500.0,0.0003,120]
[360789534,1747027676074,-2000.0,0.0003,120]
[360789535,1747027676098,-2000.0,0.0003,120]
[360789536,1747027676124,-2000.0,0.0003,30]
[360789537,1747027676150,-2000.0,0.0003,30]
[360789538,1747027676174,-5000.0,0.0003,30]
[360789539,1747027676200,-5000.0,0.0003,30]
[360789540,1747027676224,-212.17074216,0.0003,120]
[360789541,1747027676249,-12623.54026388,0.0003,120]
[360789542,1747027676275,-314.24507772,0.0003,120]
[360789543,1747027676300,-314.24507772,0.0003,120]
[360789544,1747027676325,-400.0,0.00030137,60]
[360789545,1747027676354,-2000.0,0.00030137,120]
[360789546,1747027676379,-1000.0,0.00030137,120]
[360789547,1747027676404,-311.61327,0.000306,120]
[360789548,1747027676428,-200.0,0.000306,120]
[360789549,1747027676454,-2000.0,0.00030685,120]
[360789550,1747027676478,-30709.02587884,0.00031,30]
[360789551,1747027676505,-500.0,0.00031,120]
[360789552,1747027676528,-160.0,0.00031,120]
[360789553,1747027676553,-160.0,0.00031,120]
[360789554,1747027676577,-160.0,0.00031,120]
[360789555,1747027676602,-160.0,0.00031,120]
[360789556,1747027676625,-160.0,0.00031,120]
[360789557,1747027676649,-160.0,0.00031,120]
[360789558,1747027676674,-422.20096692,0.00031,120]
[360789559,1747027676702,-2000.0,0.00031233,120]
[360789562,1747027676742,-5688.99,0.0003128,60]
[360789563,1747027676766,-999999.99391389,0.000313,30]
[360789564,1747027676790,-200.0,0.00031345,120]
[360789565,1747027676813,-218.9119,0.000314,120]
[360789566,1747027676837,-200.0,0.000314,120]
[360789567,1747027676864,-218.9119,0.000314,120]
[360789568,1747027676887,-846.25591248,0.000315,120]
[360789569,1747027676911,-2000.0,0.00031781,120]
[360789570,1747027676934,-200.0,0.000318,120]
[360789571,1747027676968,-1526.34,0.00031898,30]
[360789572,1747027676995,-1525.547833,0.00031963,120]
[360789573,1747027677021,-924.75768848,0.00032,120]
[360789574,1747027677044,-290.30806392,0.00032,30]
[360789575,1747027677068,-9733.0,0.00032,30]
[360789576,1747027677092,-4221.9995949,0.00032,120]
[360789577,1747027677116,-500.0,0.00032,120]
[360789578,1747027677141,-1526.34,0.00032198,30]
[360789579,1747027677165,-5000.0,0.00032264,35]
[360789580,1747027677189,-2000.0,0.00032329,120]
[360789581,1747027677213,-1526.34,0.00032398,30]
[360789582,1747027677237,-200.0,0.00032557,120]
[360789583,1747027677261,-7840.41710356,0.00032786,40]
[360789584,1747027677287,-5000.0,0.00032786,40]
[360789585,1747027677310,-5000.0,0.00032786,40]
[360789586,1747027677333,-5000.0,0.00032786,40]
[360789587,1747027677359,-5000.0,0.00032786,38]
[360789588,1747027677384,-500.0,0.00032876,120]
[360789589,1747027677410,-500.0,0.00032876,120]
[360789590,1747027677434,-500.0,0.00032876,120]
[360789591,1747027677458,-500.0,0.00032876,120]
[360789592,1747027677482,-500.0,0.00032876,120]
[360789593,1747027677634,-500.0,0.00032876,120]
[360789594,1747027677660,-500.0,0.00032876,120]
[360789595,1747027677684,-500.0,0.00032876,120]
[360789596,1747027677711,-500.0,0.00032876,120]
[360789597,1747027677735,-500.0,0.00032876,120]
[360789598,1747027677758,-277.19092567,0.00032876,120]
[360789599,1747027677784,-400.0,0.00032877,60]
[360789600,1747027677807,-211.1797355,0.00032877,120]
[360789601,1747027677830,-500.0,0.00032877,120]
[360789602,1747027677855,-500.0,0.00032877,120]
[360789603,1747027677879,-2000.0,0.00032877,120]
[360789604,1747027677902,-1526.34,0.00032898,73]
[360789605,1747027677928,-200.0,0.00032971,120]
[360789606,1747027677951,-1526.34,0.00032998,80]
[360789607,1747027677976,-392.47151,0.00033,120]
[360789608,1747027678000,-238.05607,0.00033,120]
[360789609,1747027678024,-375.88414,0.00033,120]
[360789610,1747027678054,-500.0,0.00033,120]
[360789611,1747027678080,-1526.34,0.00033098,32]
[360789612,1747027678107,-218.9119,0.000331,120]
[360789613,1747027678132,-200.0,0.000331,120]
[360789614,1747027678156,-5060.49942369,0.00033126,38]
[360789615,1747027678182,-1526.34,0.00033198,36]
[360789616,1747027678207,-1526.34,0.00033298,76]
[360789617,1747027678232,-1526.34,0.00033398,67]
[360789618,1747027678257,-1526.34,0.00033498,86]
[360789619,1747027678282,-1526.34,0.00033598,50]
[360789620,1747027678307,-1526.34,0.00033698,44]
[360789621,1747027678331,-1526.34,0.00033798,83]
[360789622,1747027678357,-200.0,0.0003385,36]
[360789623,1747027678381,-1526.34,0.00033898,41]
[360789624,1747027678406,-5537.40843786,0.00033912,43]
[360789625,1747027678430,-200.0,0.00033954,120]
[360789626,1747027678454,-1526.34,0.00033998,84]
[360789627,1747027678478,-500.0,0.00034,120]
[360789628,1747027678506,-1526.34,0.00034098,85]
[360789629,1747027678530,-1526.34,0.00034198,34]
[360789630,1747027678554,-392.47151,0.000342,120]
[360789631,1747027678581,-238.05607,0.000342,120]
[360789632,1747027678608,-1526.34,0.00034298,58]
[360789633,1747027678633,-1526.34,0.00034398,30]
[360789634,1747027678659,-1526.34,0.00034498,90]
[360789635,1747027678685,-200.0,0.00034547,120]
[360789636,1747027678709,-1526.34,0.00034598,62]
[360789637,1747027678734,-1526.34,0.00034698,40]
[360789638,1747027678759,-200.0,0.0003474,120]
[360789639,1747027678783,-643.82460903,0.00034752,41]
[360789640,1747027678809,-1526.34,0.00034798,87]
[360789641,1747027678834,-218.9119,0.000348,120]
[360789642,1747027678861,-200.0,0.000348,120]
[360789643,1747027678886,-497.14780572,0.00034852,51]
[360789644,1747027678911,-1526.34,0.00034898,73]
[360789645,1747027678936,-200.0,0.00034975,120]
[360789646,1747027678962,-479.40964872,0.00034986,31]
[360789647,1747027678987,-1526.34,0.00034998,74]
[360789648,1747027679013,-462.30438642,0.00034999,30]
[360789649,1747027679038,-678.26141884,0.00035,120]
[360789650,1747027679063,-7464.44697548,0.00035,120]
[360789651,1747027679088,-4652.21426797,0.00035,120]
[360789652,1747027679116,-8072.45517295,0.00035,30]
[360789653,1747027679142,-210.66361321,0.00035,30]
[360789654,1747027679167,-8040.0,0.00035,30]
[360789655,1747027679193,-184.24,0.00035,69]
[360789656,1747027679220,-4382.57,0.00035,120]
[360789657,1747027679245,-345.0,0.00035,120]
[360789658,1747027679270,-2000.0,0.00035,120]
[360789659,1747027679296,-2000.0,0.00035,120]
[360789660,1747027679320,-2000.0,0.00035,120]
[360789661,1747027679345,-2000.0,0.00035,120]